Cogmind - Beta 17 @@@ ROGUE MODE // 2026.07.21 @ 16:44:52 Player: pinbox Result: Destroyed by as-54517 with Assembled F-torch Performance ------------- Evolutions (0) 0 Regions Visited (2) 400 Robots Destroyed (6) 30 Value Destroyed (85) 85 Prototype IDs (0) 0 Alien Tech Used (0) 0 Bonus (0) 0 TOTAL SCORE: 515 Bonus ------- None Cogmind --------- Core Integrity 0/250 Matter 300/300 Energy 92/100 System Corruption 4% Temperature Cool (20) Movement Core (50) Location -10/Mines Parts ------- > --- POWER (1) -------- (None) > --- PROPULSION (2) --- (None) > --- UTILITY (2) ------ (None) > --- WEAPON (2) ------- (None) > --- INVENTORY (5) ---- Light Treads Light Treads High-capacity Storage Unit Large Battery (200) Seismic Detector Peak State ------------ > --- POWER ------------ Light Ion Engine > --- PROPULSION ------- Light Treads Light Treads > --- UTILITY ---------- Small Storage Unit Seismic Detector > --- WEAPON ----------- Medium Laser Medium Laser > --- INVENTORY -------- Light Ion Engine [Rating: 7] Favorites ----------- Power Ion Engine Engine Ion Engine Propulsion Light Treads Treads Light Treads Utility Small Storage Unit Device Seismic Detector Storage Small Storage Unit Protection Light Armor Plating Weapon Medium Laser Energy Gun Medium Laser Build | -11 -10 -10 ------- Run | Yrd Mat Min Slots Evolved . | . . . Power . | . . . Propulsion . | . . . Utility . | . . . Weapon . | . . . Parts Attached 10 | 7 2 1 Power 2 | 1 1 . Engine 2 | 1 1 . Core . | . . . Reactor . | . . . Propulsion 2 | 2 . . Treads 2 | 2 . . Leg . | . . . Wheel . | . . . Hover . | . . . Flight . | . . . Utility 4 | 2 1 1 Device 1 | 1 . . Storage 2 | 1 1 . Processor . | . . . Hackware . | . . . Protection 1 | . . 1 Artifact . | . . . Weapon 2 | 2 . . Energy Gun 2 | 2 . . Energy Cannon . | . . . Ballistic Gun . | . . . Ballistic Cannon . | . . . Launcher . | . . . Special Weapon . | . . . Impact Weapon . | . . . Slashing Weapon . | . . . Piercing Weapon . | . . . Special Melee Weapon . | . . . Unidentified Prototypes . | . . . Parts Lost 5 | . . 5 Power 1 | . . 1 Propulsion 2 | . . 2 Utility 1 | . . 1 Weapon 1 | . . 1 Highest Loss Streak 5 | . . 5 To Critical Strikes . | . . . Average Backups 5 | . 5 7 Power 1 | . 1 2 Propulsion 1 | . 1 2 Utility 1 | . 1 2 Weapon 1 | . 1 . Tool/Special . | . . . Unused Backups 7 | . 1 6 Power 1 | . . 1 Propulsion 2 | . . 2 Utility 2 | . . 2 Weapon 2 | . 1 1 Tool/Special . | . . . Average Slot Usage (%) 98 | . 100 90 Engine 13 | . 14 11 Treads 27 | . 28 23 Device 13 | . 14 11 Storage 14 | . 14 14 Energy Gun 28 | . 28 28 Peak Build Rating 7 | 7 7 7 Average Rating 6 | 5 7 6 On Entrance 4 | . 7 7 Avg Prop Armor Cover (%) . | . . . Naked Turns 1 | . . 1 Heaviest Build 52 | 13 50 52 Greatest Support 40 | 40 40 40 Greatest Overweight (x) 2 | . 1 2 Average Overweight (x) . | . . . Largest Inventory Capacity 20 | 8 20 20 Average Capacity 8 | 7 8 18 Most Carried 8 | 1 8 8 Average Carried 5 | . 6 7 Final Capacity 20 | 8 20 5 Final Carried 8 | 1 8 5 Class Distribution -------------------- 100% | Mutant Dominant Class ---------------- Mutant | -10/Materials Mutant | -10/Mines Resources | -11 -10 -10 ----------- Run | Yrd Mat Min Matter Collected 290 | 270 20 . Remotely . | . . . Salvage Created 155 | 43 112 . Parts 11 | 3 8 . Haulers Intercepted 1 | . 1 . Recyclers Shooed . | . . . Parts Field Recycled . | . . . Retrieved Matter . | . . . Parts Self-Destructed . | . . . Prevented . | . . . Parts Restored . | . . . Kills | -11 -10 -10 ------- Run | Yrd Mat Min Combat Hostiles Destroyed 2 | . 2 . Guns 2 | . 2 . Classes Destroyed 4 | 1 3 . Worker 1 | . 1 . Tunneler 2 | 2 . . Hauler 1 | . 1 . Grunt 2 | . 2 . Best Kill Streak 2 | 2 1 . Combat Bots Only 1 | . 1 . Max Kills in Single Turn 1 | 1 1 . Gunslinging . | . . . Exploded . | . . . Melee . | . . . Uniques/NPCs Destroyed . | . . . Combat | -11 -10 -10 -------- Run | Yrd Mat Min Hostile Shots Fired 30 | . 14 16 Missed 6 | . 4 2 Hits 24 | . 10 14 Melee 1 | . . 1 Projectile 23 | . 10 13 AOE 11 | . . 11 Critical Strikes 1 | . . 1 Part Disruptions 1 | . . 1 Damage Taken 880 | . 128 752 Core 253 | . 43 210 Absorbed by Shields . | . . . Core Remaining (%) 100 | 100 . . Volleys Fired 21 | 4 17 . Largest 2 | 2 2 . Hottest 100 | 100 100 . Shots Fired 42 | 8 34 . Gun 42 | 8 34 . Cannon . | . . . Launcher . | . . . Special . | . . . Kinetic . | . . . Thermal 42 | 8 34 . Explosive . | . . . Electromagnetic . | . . . Robot Hit Streak 6 | 6 4 . Robot Miss Streak 2 | 1 2 . Penetration Max . | . . . Secondary Targets . | . . . Shots Hit Robots 30 | 7 23 . Core Hits 10 | 3 7 . Critical Kills . | . . . Critical Parts Destroyed . | . . . Critical Strikes 1 | . 1 . Burn 1 | . 1 . Melee Attacks . | . . . Impact . | . . . Slashing . | . . . Piercing . | . . . Sneak Attacks . | . . . Combat Hostiles . | . . . Follow-up Attacks . | . . . Damage Inflicted 389 | 85 304 . Guns 381 | 85 296 . Cannons . | . . . Explosions . | . . . Melee . | . . . Ramming 8 | . 8 . Kinetic . | . . . Thermal 381 | 85 296 . Explosive . | . . . Electromagnetic . | . . . Impact . | . . . Slashing . | . . . Piercing . | . . . Highest Corruption 4 | . . 4 Average Corruption 3 | . . 3 Corruption Purged . | . . . Corruption Blocked . | . . . Overload Shots . | . . . Overflow Damage . | . . . Projectiles . | . . . Explosions . | . . . Melee . | . . . Knockbacks . | . . . Impact . | . . . Kinetic . | . . . Secondary . | . . . Self-Inflicted Damage . | . . . Shots . | . . . Rammed . | . . . Targets Rammed 1 | . 1 . Kicked . | . . . Crushed 1 | . 1 . Highest Temperature 264 | 78 264 . Average Temperature 86 | 39 97 . Received Heat Transfer 129 | . 69 60 Effects 3 | . 3 . Interference 3 | . 3 . Siege Activations . | . . . Martial Activations . | . . . Shielding Activations . | . . . Robots Disrupted . | . . . Combat Hostiles . | . . . Robots Corrupted . | . . . Combat Hostiles . | . . . Parts Fried . | . . . Impact Corruptions . | . . . Robots Melted . | . . . Combat Hostiles . | . . . Parts Melted 5 | 1 4 . Heat Transferred 1221 | 259 962 . Parts Sabotaged . | . . . Parts Stolen . | . . . Parts Stripped . | . . . Power Chain Reactions . | . . . Alert | -11 -10 -10 ------- Run | Yrd Mat Min Maximum Alert Level . | . . . Low Security (%) 100 | 100 100 100 Level 1 . | . . . Level 2 . | . . . Level 3 . | . . . Level 4 . | . . . Level 5 . | . . . High Security . | . . . Max Security . | . . . Peak Influence 35 | 5 35 . Initial . | . . . Average 3 | . 5 . Influence Increases 93 | 10 83 . Destroy 0b10 Robot/C 40 | . 40 . Destroy 0b10 Robot/NC 20 | 10 10 . Destroy Leader 12 | . 12 . Successful Hack 6 | . 6 . Lose Combat Pursuer 15 | . 15 . Influence Decreases 93 | 10 83 . Time Decay 93 | 10 83 . Squads Dispatched 1 | . 1 . Investigation . | . . . Extermination . | . . . Reinforcement 1 | . 1 . Assault . | . . . Garrison . | . . . Intercept . | . . . Searches Triggered . | . . . Construction Impeded . | . . . Haulers Reinforced . | . . . Active Scanning Responses . | . . . Cargo Convoy Interrupts . | . . . Stealth | -11 -10 -10 --------- Run | Yrd Mat Min Distress Signals . | . . . Communications Jammed . | . . . Distress Signals . | . . . Times Spotted 17 | . 6 11 Peak Tracking Total 11 | . 2 11 Tactical Retreats 3 | . 1 2 Traps | -11 -10 -10 ------- Run | Yrd Mat Min Traps Triggered . | . . . Indirectly . | . . . Trap Hack Attempts . | . . . Triggered . | . . . Disarmed . | . . . Reprogrammed . | . . . Reused . | . . . Traps Extracted . | . . . Installed . | . . . Triggered . | . . . Machines | -11 -10 -10 ---------- Run | Yrd Mat Min Machines Disabled . | . . . Max in Single Turn . | . . . Machines Repaired . | . . . Machines Dismantled . | . . . Machines Sabotaged . | . . . Overloaded Fab Kills . | . . . Hacking | -11 -10 -10 --------- Run | Yrd Mat Min Machines Accessed 2 | . 2 . Terminals 2 | . 2 . Fabricators . | . . . Repair Stations . | . . . Recycling Units . | . . . Scanalyzers . | . . . Garrison Access . | . . . Total Hacks 4 | . 4 . Successful 2 | . 2 . Failed 2 | . 2 . Catastrophic . | . . . Database Lockouts . | . . . Manual 3 | . 3 . Terminals 4 | . 4 . Fabricators . | . . . Repair Stations . | . . . Recycling Units . | . . . Scanalyzers . | . . . Garrison Access . | . . . Terminal Hacks 2 | . 2 . Record 1 | . 1 . Zone Layout 1 | . 1 . Fabricator Hacks . | . . . Repair Station Hacks . | . . . Recycling Unit Hacks . | . . . Scanalyzer . | . . . Garrison Access Hacks . | . . . Unauthorized Hacks . | . . . Terminals . | . . . Fabricators . | . . . Repair Stations . | . . . Recycling Units . | . . . Scanalyzers . | . . . Garrison Access . | . . . Data Cores Recovered . | . . . Used . | . . . Hacking Detections 1 | . 1 . Full Trace Events . | . . . Feedback Events . | . . . Feedback Blocked . | . . . Robot Schematics Acquired . | . . . Robots Built . | . . . Authchips . | . . . Time . | . . . Total Robot Build Rating . | . . . Part Schematics Acquired . | . . . Parts Built . | . . . Authchips . | . . . Time . | . . . Total Part Build Rating . | . . . Part Studies Acquired . | . . . Parts Repaired . | . . . Time . | . . . Parts Recycled . | . . . Recycled Matter . | . . . Retrieved Matter . | . . . Retrieved Components . | . . . Parts Scanalyzed . | . . . Part Schematics Acquired . | . . . Parts Damaged . | . . . Bothacking | -11 -10 -10 ------------ Run | Yrd Mat Min Used RIF Installer . | . . . Robots Hacked . | . . . Non-combat . | . . . Combat . | . . . Robot Hacks Applied . | . . . Relay Couplers Released . | . . . Fabnet Peak Effective % . | . . . Robots Rewired . | . . . Allies Hacked . | . . . Hacks Repelled . | . . . Allies | -11 -10 -10 -------- Run | Yrd Mat Min Total Allies . | . . . Largest Group . | . . . Highest-Rated Group . | . . . Highest-Rated Ally . | . . . Total Orders . | . . . Ally Attacks . | . . . Total Damage . | . . . Kills . | . . . Allies Corrupted . | . . . Allies Melted . | . . . Intel | -11 -10 -10 ------- Run | Yrd Mat Min Active Infowar (turns) 532 | 23 473 36 Seismic 532 | 23 473 36 Robot Analysis Total . | . . . Derelict Logs Recovered . | . . . Drone Launches . | . . . Drone Recoveries . | . . . Exploration | -11 -10 -10 ------------- Run | Yrd Mat Min Turns Passed 653 | 113 490 50 Spaces Moved 337 | 59 253 25 Core 11 | 3 . 8 Treads 326 | 56 253 17 Legs . | . . . Wheels . | . . . Hover . | . . . Flight . | . . . Fastest Speed 50 | 50 160 50 Average Speed 162 | 154 161 182 Slowest Speed 320 | 160 240 320 Overloaded Moves . | . . . Propulsion Burnouts . | . . . Robots Hopped . | . . . Potential Cave-ins . | . . . Cave-ins Triggered 1 | . . 1 Exploration Rate (%) 20 | 3 48 10 Regions Visited 2 Branch Regions 1 Pre-discovered Areas . | . . . Known Exits Taken . | . . . Unknown Exits Taken 2 | 1 1 . Scrap Searched . | . . . Spaces Dug . | . . . Terrain Destroyed . | . . . Melee . | . . . Projectile . | . . . AOE . | . . . Terrain Rammed . | . . . Walls Destroyed . | . . . Machines Disabled . | . . . Actions | -11 -10 -10 --------- Run | Yrd Mat Min Total 402 | 70 300 32 Wait 19 | . 19 . Move 335 | 58 252 25 Hop . | . . . Pick Up 8 | 1 7 . Fast Attach 7 | 7 . . Attach . | . . . Detach 1 | . . 1 Swap 3 | . 2 1 Drop 7 | . 2 5 Fire 21 | 4 17 . Melee . | . . . Ram . | . . . Kick . | . . . Crush 1 | . 1 . Escape Stasis . | . . . Rewire . | . . . Trap . | . . . Miscellaneous . | . . . Route ------- -11/Scrapyard -10/Materials (discovered 4 exits: [*Mat x2] / [*Min x2]) -10/Mines History --------- Turn | Location | Event 39 | -11/Scrapyard | Discovered new exit (range 15) 114 | -11/Scrapyard | Entered Materials 194 | -10/Materials | Discovered new exit (range 8) 273 | -10/Materials | Discovered new exit (range 11) 310 | -10/Materials | Build established: Mutant 520 | -10/Materials | Discovered new exit (range 12) 589 | -10/Materials | Discovered new exit (range 7) 604 | -10/Materials | Entered Mines 605 | -10/Mines | Assembled infested the area 610 | -10/Mines | Assisted by a Guerilla fighting off Assembled 643 | -10/Mines | Crushed by falling debris 643 | -10/Mines | Core integrity fell below 50% 650 | -10/Mines | Core integrity fell below 20% 654 | -10/Mines | Destroyed by as-54517 with Assembled F-torch Last Messages --------------- 00619_ as-54517 knocked back. 00619_ HV Slug penetrates as-54517. 00635_ An explosion rips through the floor. 00637_ A derelict is hurriedly installing traps. 00637_ H8-U6B(g) destroyed. 00643_ The unstable cave ceiling collapses. 00643_ Crushed by falling debris. 00643_ Ion Engine destroyed. 00643_ System corrupted by crushing effect (+3). 00645_ as-26786 destroyed. 00647_ The unstable cave ceiling collapses. 00647_ Lgt. Treads destroyed. 00647_ Lgt. Armor Plating destroyed. 00648_ Dropped Assault Rifle. 00648_ Dropped Heat Sink. 00649_ Dropped Lgt. Ion Engine. 00650_ Dropped Med. Laser. 00652_ The unstable cave ceiling collapses. 00653_ Med. Laser destroyed. 00653_ System corrupted by crushing effect (+1). Map ----- +----------------------------------------------------+ | ??????????????????????? ???????? | | ????????????????????? ???????? | | ????????????????????" ###????? | | ?????????????????#### """ ###?? | | ?????????????????#" """#?? | | ???????????????#?# #?? | | ???????????????# #" #?? | | ???????????????? %=! #?? | | ????????????????? =%[ #?? | | ?????????????????## ! #?? | | ?????????????????#" # #?? | | ?????????????????#" #?? | | ??????????????????# #?? | | ??????????????????# #?? | | ????????????????????# #?? | | ????????????????????## ##? | | ????????????????????# #? | | ????????????????????# * #? | | ????????????????????# [ #? | | ????????????????????# ##? | | ????????????????????# # #? | | ????????????????????## ##? | | ?????????????????????# #?? | | ?????????????????????# #?? | | ?????????????????????###### ##?? | | ??????????????????????## @ #?? | | ???????????????#######a=%a% #? | | ????????????# %% % #? | | ???????????????### #;### ##? | | ???????????????????#???## #?? | | ????????????????????????# a #?? | | ????????????????????????## ##?? | | ?????????????????????????## #??? | | ??????????????????????????? #??? | | ??????????????????????????? #??? | | ??????????????????????????? #??? | | ??????????????????????????? #??? | | ???????????????????????????##??? | | ???????????????????????????????? | | ???????????????????????????????? | | ???????????????????????????????? | | ???????????????????????????????? | | ???????????????????????????????? | | ???????????????????????????????? | | ???????????????????????????????? | | ???????????????????????????????? | | ???????????????????????????????? | | ???????????????????????????????? | | ???????????????????????????????? | | ???????????????????????????????? | +----------------------------------------------------+ Best States ------------- Heat Dissipation 25 Energy Generation 10 Energy Capacity 250 Matter Stores 300 Matter Capacity 300 Sight Range 16 Terrain Scan Density 10 Evasion (%) 40 Recoil Reduction 2 Item Schematics ----------------- None Robot Schematics ------------------ None Fabricated ------------ Nothing Repaired ---------- Nothing Studied --------- None Alien Tech Used ----------------- None Achievements -------------- None Challenges ------------ None Game ------ Seed HelicalResetPurifier Manual? 0 Play Time 00:06:19 Cumulative 88.2 hours Start 2026.07.21 @ 16:39:53 End 2026.07.21 @ 16:44:52 Sessions 1 Manual Loads 0 Difficulty Rogue Special Mode None Game No. 90 Rogue 90 Adventurer 0 Explorer 0 Win Type - Total 3 Types 2/0/0/0/0/0/0/0/0/1 Lore% 58 Gallery% 50 Achievement% 44 Wizard Run 0 Options --------- Layout 1 ASCII 0 Keyboard 1 Movement Numpad Keybinds 1 Fullscreen 2 Font 24/Smallcaps Map View 50x40 Zoom Use 0% Tactical HUD 1 Map Filters NONE Filters NONE Steam 1 RUN: d8b059f8-77f1-4d53-863b-048e102f4470